[Event "*** Titled Tuesday Blitz"]
[Site "Chess.com"]
[Date "2020.03.03"]
[Round "1"]
[White "Maikrosoft63"]
[Black "ChelsieMonica"]
[Result "1/2-1/2"]
[WhiteElo "2575"]
[BlackElo "2145"]
[TimeControl "180+1"]
[EndTime "13:08:24 PST"]
[Termination "Game drawn - insufficient material"]

1. e4 {[%clk 0:03:00.9]} 1... e5 {[%clk 0:02:59.4]} 2. Nf3 {[%clk 0:02:58.2]}
2... Nc6 {[%clk 0:02:58.9]} 3. Bc4 {[%clk 0:02:58.6]} 3... Bc5 {[%clk 0:02:54]}
4. d3 {[%clk 0:02:58.7]} 4... Nf6 {[%clk 0:02:54.1]} 5. Nbd2 {[%clk 0:02:57.5]}
5... O-O {[%clk 0:02:54.4]} 6. O-O {[%clk 0:02:56.6]} 6... d5 {[%clk 0:02:54.8]}
7. exd5 {[%clk 0:02:56.2]} 7... Nxd5 {[%clk 0:02:55]} 8. Ne4 {[%clk 0:02:55.6]}
8... Be7 {[%clk 0:02:55.2]} 9. h3 {[%clk 0:02:54.3]} 9... Kh8 {[%clk 0:02:52.6]}
10. Re1 {[%clk 0:02:52.1]} 10... h6 {[%clk 0:02:48.9]} 11. Ng3 {[%clk
0:02:51.5]} 11... Nb6 {[%clk 0:02:42.5]} 12. Bb5 {[%clk 0:02:48.5]} 12... Nd4
{[%clk 0:02:32.6]} 13. Nxd4 {[%clk 0:02:44.9]} 13... exd4 {[%clk 0:02:32.5]} 14.
Qh5 {[%clk 0:02:37.1]} 14... Bg5 {[%clk 0:02:25.5]} 15. Re5 {[%clk 0:01:57.2]}
15... Bxc1 {[%clk 0:02:21.7]} 16. Rxc1 {[%clk 0:01:58.1]} 16... c6 {[%clk
0:02:21.5]} 17. Bc4 {[%clk 0:01:55.8]} 17... Nxc4 {[%clk 0:02:14.7]} 18. dxc4
{[%clk 0:01:56.7]} 18... Be6 {[%clk 0:02:12.4]} 19. b3 {[%clk 0:01:55.4]} 19...
d3 {[%clk 0:02:05.1]} 20. cxd3 {[%clk 0:01:53.4]} 20... Qxd3 {[%clk 0:02:04.8]}
21. Rce1 {[%clk 0:01:53]} 21... Rad8 {[%clk 0:01:58.4]} 22. Kh2 {[%clk
0:01:51.6]} 22... Qd2 {[%clk 0:01:37]} 23. R1e2 {[%clk 0:01:48.9]} 23... Qf4
{[%clk 0:01:35.1]} 24. R5e4 {[%clk 0:01:47]} 24... Qf6 {[%clk 0:01:32.7]} 25. f4
{[%clk 0:01:39.7]} 25... Rd3 {[%clk 0:01:28.6]} 26. f5 {[%clk 0:01:36.5]} 26...
Bd7 {[%clk 0:01:27.8]} 27. Re7 {[%clk 0:01:31.3]} 27... Qd6 {[%clk 0:01:26.1]}
28. Qh4 {[%clk 0:01:29]} 28... Bxf5 {[%clk 0:01:23.3]} 29. R2e3 {[%clk
0:01:17.3]} 29... Rxe3 {[%clk 0:01:23.3]} 30. Rxe3 {[%clk 0:01:18.2]} 30... Be6
{[%clk 0:01:22.9]} 31. Qe4 {[%clk 0:01:13.6]} 31... Rd8 {[%clk 0:01:22.4]} 32.
Kh1 {[%clk 0:01:09.9]} 32... Qd1+ {[%clk 0:01:22.1]} 33. Re1 {[%clk 0:01:09.9]}
33... Qd4 {[%clk 0:01:22.9]} 34. Qf3 {[%clk 0:01:04.1]} 34... Qd2 {[%clk
0:01:21]} 35. Rf1 {[%clk 0:00:56.8]} 35... Rd3 {[%clk 0:01:20.3]} 36. Ne4 {[%clk
0:00:46.1]} 36... Rxf3 {[%clk 0:01:16.7]} 37. Nxd2 {[%clk 0:00:46.2]} 37...
Rxf1+ {[%clk 0:01:17.6]} 38. Nxf1 {[%clk 0:00:45.5]} 38... Kg8 {[%clk
0:01:17.9]} 39. Kg1 {[%clk 0:00:45.3]} 39... Kf8 {[%clk 0:01:18.8]} 40. Kf2
{[%clk 0:00:45.5]} 40... Ke7 {[%clk 0:01:19.7]} 41. Ke3 {[%clk 0:00:46]} 41...
Kd6 {[%clk 0:01:20.6]} 42. Nd2 {[%clk 0:00:44.1]} 42... Kc5 {[%clk 0:01:20.7]}
43. a3 {[%clk 0:00:43.2]} 43... a5 {[%clk 0:01:20.5]} 44. Ne4+ {[%clk
0:00:43.3]} 44... Kb6 {[%clk 0:01:19.6]} 45. Kd4 {[%clk 0:00:43.8]} 45... f6
{[%clk 0:01:17.8]} 46. c5+ {[%clk 0:00:43.5]} 46... Kc7 {[%clk 0:01:17.6]} 47.
b4 {[%clk 0:00:43.3]} 47... axb4 {[%clk 0:01:17.3]} 48. axb4 {[%clk 0:00:44.2]}
48... Bd5 {[%clk 0:01:17.1]} 49. Nd6 {[%clk 0:00:42.7]} 49... Bxg2 {[%clk
0:01:15]} 50. h4 {[%clk 0:00:40.9]} 50... g5 {[%clk 0:01:14.2]} 51. h5 {[%clk
0:00:40.3]} 51... Bf3 {[%clk 0:01:13.9]} 52. Ne8+ {[%clk 0:00:40.5]} 52... Kd7
{[%clk 0:01:13.6]} 53. Nxf6+ {[%clk 0:00:41.4]} 53... Ke6 {[%clk 0:01:13.8]} 54.
Ne8 {[%clk 0:00:37.9]} 54... Bxh5 {[%clk 0:01:12.9]} 55. Nd6 {[%clk 0:00:38.5]}
55... b6 {[%clk 0:01:11.3]} 56. Nb7 {[%clk 0:00:33]} 56... bxc5+ {[%clk
0:01:11.3]} 57. Kxc5 {[%clk 0:00:33.9]} 57... Bf3 {[%clk 0:01:10.8]} 58. Nd8+
{[%clk 0:00:33]} 58... Kd7 {[%clk 0:01:11.1]} 59. Nf7 {[%clk 0:00:33.6]} 59...
g4 {[%clk 0:01:11.5]} 60. Nxh6 {[%clk 0:00:24.4]} 60... g3 {[%clk 0:01:11.6]}
61. Nf7 {[%clk 0:00:24.8]} 61... Ke7 {[%clk 0:01:08.3]} 62. Ne5 {[%clk
0:00:23.6]} 62... Bd5 {[%clk 0:01:08]} 63. Ng6+ {[%clk 0:00:20.5]} 63... Kf6
{[%clk 0:01:08.2]} 64. Nf4 {[%clk 0:00:21.4]} 64... Be4 {[%clk 0:01:08.3]} 65.
Kd4 {[%clk 0:00:20.9]} 65... Kf5 {[%clk 0:01:08.6]} 66. Ke3 {[%clk 0:00:20.7]}
66... Bd5 {[%clk 0:01:03]} 67. Ne2 {[%clk 0:00:19.7]} 67... Kg4 {[%clk
0:01:02.6]} 68. Nd4 {[%clk 0:00:15.7]} 68... g2 {[%clk 0:01:01.3]} 69. Kf2
{[%clk 0:00:15.9]} 69... Kh3 {[%clk 0:01:00.5]} 70. Kg1 {[%clk 0:00:15.3]} 70...
Kg3 {[%clk 0:00:59.8]} 71. b5 {[%clk 0:00:13.4]} 71... c5 {[%clk 0:01:00.2]} 72.
Ne2+ {[%clk 0:00:13.6]} 72... Kf3 {[%clk 0:01:00]} 73. Nc3 {[%clk 0:00:13.7]}
73... Bb7 {[%clk 0:01:00]} 74. b6 {[%clk 0:00:14]} 74... Ke3 {[%clk 0:01:00.4]}
75. Na4 {[%clk 0:00:13.8]} 75... c4 {[%clk 0:01:00.4]} 76. Nc5 {[%clk
0:00:13.5]} 76... Bd5 {[%clk 0:01:00.3]} 77. b7 {[%clk 0:00:07.4]} 77... Bxb7
{[%clk 0:00:59.9]} 78. Nxb7 {[%clk 0:00:08.3]} 78... c3 {[%clk 0:01:00.8]} 79.
Nc5 {[%clk 0:00:06.8]} 79... c2 {[%clk 0:00:59.4]} 80. Nb3 {[%clk 0:00:06.9]}
80... Kd3 {[%clk 0:01:00.3]} 81. Kxg2 {[%clk 0:00:06.5]} 81... Kc3 {[%clk
0:01:00.7]} 82. Nc1 {[%clk 0:00:06.8]} 82... Kb2 {[%clk 0:01:00.9]} 83. Ne2
{[%clk 0:00:06.9]} 83... c1=Q {[%clk 0:01:00.2]} 84. Nxc1 {[%clk 0:00:06.4]}
1/2-1/2

[Event "*** Titled Tuesday Blitz"]
[Site "Chess.com"]
[Date "2020.03.03"]
[Round "1"]
[White "Noam_Vitenberg"]
[Black "VerdeNotte"]
[Result "1-0"]
[WhiteElo "2440"]
[BlackElo "2775"]
[TimeControl "180+1"]
[EndTime "13:08:27 PST"]
[Termination "Noam_Vitenberg won by resignation"]

1. e4 {[%clk 0:02:58.8]} 1... e5 {[%clk 0:02:53]} 2. Nc3 {[%clk 0:02:57.8]} 2...
Nf6 {[%clk 0:02:52.5]} 3. Bc4 {[%clk 0:02:56]} 3... c6 {[%clk 0:02:47.4]} 4. d4
{[%clk 0:02:52.3]} 4... d6 {[%clk 0:02:31.6]} 5. dxe5 {[%clk 0:02:46.4]} 5...
dxe5 {[%clk 0:02:29]} 6. Bxf7+ {[%clk 0:02:45.3]} 6... Ke7 {[%clk 0:02:29.3]} 7.
Qxd8+ {[%clk 0:02:39.6]} 7... Kxd8 {[%clk 0:02:30.2]} 8. Nf3 {[%clk 0:02:30.3]}
8... Bb4 {[%clk 0:02:27]} 9. Bd2 {[%clk 0:02:26.5]} 9... Rf8 {[%clk 0:02:22.4]}
10. Bb3 {[%clk 0:02:23.3]} 10... Nbd7 {[%clk 0:02:17.2]} 11. O-O-O {[%clk
0:02:17.4]} 11... Bd6 {[%clk 0:01:59.5]} 12. Ng5 {[%clk 0:02:01.5]} 12... Ke7
{[%clk 0:01:58.8]} 13. Ne6 {[%clk 0:01:53.3]} 13... Rg8 {[%clk 0:01:57.1]} 14.
f4 {[%clk 0:01:47.8]} 14... exf4 {[%clk 0:01:43.4]} 15. Bxf4 {[%clk 0:01:43.6]}
15... Bxf4+ {[%clk 0:01:41.3]} 16. Nxf4 {[%clk 0:01:44.5]} 16... Re8 {[%clk
0:01:40.8]} 17. Ne6 {[%clk 0:01:40.1]} 17... Ne5 {[%clk 0:01:31.2]} 18. Nc7
{[%clk 0:01:36.6]} 18... Bg4 {[%clk 0:01:30.7]} 19. Nxe8 {[%clk 0:01:27.1]}
19... Rxe8 {[%clk 0:01:30.7]} 20. Rd2 {[%clk 0:01:23.7]} 20... h5 {[%clk
0:01:28.7]} 21. h3 {[%clk 0:01:18.9]} 21... Bc8 {[%clk 0:01:28.4]} 22. Ne2
{[%clk 0:01:13.5]} 22... Nxe4 {[%clk 0:01:26]} 23. Rd4 {[%clk 0:01:10.1]} 23...
Bf5 {[%clk 0:01:23.3]} 24. Re1 {[%clk 0:01:04.5]} 24... Nc5 {[%clk 0:01:20.1]}
25. Ng3 {[%clk 0:01:01.7]} 25... Kf6 {[%clk 0:01:20.4]} 26. Nxh5+ {[%clk
0:00:55.8]} 26... Kg6 {[%clk 0:01:17.5]} 27. Nf4+ {[%clk 0:00:53.6]} 27... Kh7
{[%clk 0:01:08]} 28. g4 {[%clk 0:00:49.1]} 28... Bc8 {[%clk 0:00:48.1]} 29. Re3
{[%clk 0:00:43.7]} 29... b6 {[%clk 0:00:37.4]} 30. c3 {[%clk 0:00:39.2]} 30...
g6 {[%clk 0:00:17.7]} 31. Bf7 {[%clk 0:00:34]} 31... Re7 {[%clk 0:00:15.1]} 32.
Bb3 {[%clk 0:00:27.8]} 32... Bd7 {[%clk 0:00:13.9]} 33. Bc2 {[%clk 0:00:25.1]}
33... Be8 {[%clk 0:00:14.3]} 34. h4 {[%clk 0:00:22.1]} 34... Kg7 {[%clk
0:00:14.2]} 35. Rd6 {[%clk 0:00:18.1]} 35... Ncd7 {[%clk 0:00:11.1]} 36. Bxg6
{[%clk 0:00:15.3]} 36... Nxg6 {[%clk 0:00:10.7]} 37. Rxg6+ {[%clk 0:00:14]}
37... Kf8 {[%clk 0:00:10.9]} 38. Rxe7 {[%clk 0:00:13.4]} 38... Kxe7 {[%clk
0:00:11.8]} 39. Re6+ {[%clk 0:00:13.4]} 39... Kf7 {[%clk 0:00:11.8]} 40. Re3
{[%clk 0:00:12.7]} 40... Nf6 {[%clk 0:00:11.8]} 41. g5 {[%clk 0:00:12.9]} 41...
Ng4 {[%clk 0:00:12.4]} 42. Rf3 {[%clk 0:00:11.5]} 42... Ne5 {[%clk 0:00:12.3]}
43. Rf1 {[%clk 0:00:10.3]} 43... Ke7 {[%clk 0:00:09.2]} 44. h5 {[%clk
0:00:10.2]} 44... Bd7 {[%clk 0:00:07.7]} 45. Re1 {[%clk 0:00:09.6]} 45... Kd6
{[%clk 0:00:07.8]} 46. Rd1+ {[%clk 0:00:09.5]} 46... Ke7 {[%clk 0:00:07.5]} 47.
Ng6+ {[%clk 0:00:09.7]} 47... Nxg6 {[%clk 0:00:07]} 48. hxg6 {[%clk 0:00:10.6]}
48... Bf5 {[%clk 0:00:07.6]} 49. g7 {[%clk 0:00:09.7]} 49... Bh7 {[%clk
0:00:08.2]} 50. g6 {[%clk 0:00:05.3]} 50... Bg8 {[%clk 0:00:08.3]} 51. Rf1
{[%clk 0:00:05.8]} 51... b5 {[%clk 0:00:07.8]} 52. Rf8 {[%clk 0:00:05.5]} 52...
Bxa2 {[%clk 0:00:08.7]} 53. g8=Q {[%clk 0:00:05.6]} 53... Bxg8 {[%clk
0:00:09.4]} 54. Rxg8 {[%clk 0:00:06.5]} 54... a5 {[%clk 0:00:10]} 55. Ra8 {[%clk
0:00:07.4]} 55... Kf6 {[%clk 0:00:10.4]} 56. Ra6 {[%clk 0:00:07.4]} 56... Kxg6
{[%clk 0:00:11.3]} 57. Rxc6+ {[%clk 0:00:08.3]} 57... Kf5 {[%clk 0:00:12.2]} 58.
Rc5+ {[%clk 0:00:09.1]} 58... Ke4 {[%clk 0:00:13.1]} 59. Rxb5 {[%clk 0:00:10]}
59... a4 {[%clk 0:00:13.7]} 60. Rb4+ {[%clk 0:00:10.5]} 60... Ke3 {[%clk
0:00:14.6]} 61. Rxa4 {[%clk 0:00:11.4]} 61... Kd3 {[%clk 0:00:15.5]} 62. Rd4+
{[%clk 0:00:11.8]} 62... Ke3 {[%clk 0:00:16.4]} 63. b4 {[%clk 0:00:12.7]} 1-0

[Event "*** Titled Tuesday Blitz"]
[Site "Chess.com"]
[Date "2020.03.03"]
[Round "1"]
[White "Amirreza_p"]
[Black "Poghosyan_Suren"]
[Result "0-1"]
[WhiteElo "2791"]
[BlackElo "2442"]
[TimeControl "180+1"]
[EndTime "13:08:32 PST"]
[Termination "Poghosyan_Suren won on time"]

1. e4 {[%clk 0:03:00.6]} 1... e6 {[%clk 0:02:58]} 2. d4 {[%clk 0:03:00]} 2... d5
{[%clk 0:02:57.8]} 3. e5 {[%clk 0:03:00.1]} 3... c5 {[%clk 0:02:57.7]} 4. c3
{[%clk 0:02:59.7]} 4... Nc6 {[%clk 0:02:57.4]} 5. Nf3 {[%clk 0:02:59.6]} 5...
Nh6 {[%clk 0:02:56.9]} 6. Bxh6 {[%clk 0:02:53.3]} 6... gxh6 {[%clk 0:02:53.2]}
7. dxc5 {[%clk 0:02:53.4]} 7... Bxc5 {[%clk 0:02:43.5]} 8. Bd3 {[%clk
0:02:49.8]} 8... Rg8 {[%clk 0:02:23.7]} 9. O-O {[%clk 0:02:47.2]} 9... Nxe5
{[%clk 0:02:22.7]} 10. Nxe5 {[%clk 0:02:38.6]} 10... Qg5 {[%clk 0:02:19.6]} 11.
g3 {[%clk 0:02:07]} 11... Qxe5 {[%clk 0:02:15.6]} 12. Bxh7 {[%clk 0:02:02.3]}
12... Rg7 {[%clk 0:01:58.7]} 13. Bc2 {[%clk 0:01:58.8]} 13... h5 {[%clk
0:01:48.7]} 14. Kh1 {[%clk 0:01:44.8]} 14... Bd7 {[%clk 0:01:45]} 15. Nd2 {[%clk
0:01:30.3]} 15... Bc6 {[%clk 0:01:40.6]} 16. Nf3 {[%clk 0:01:25.7]} 16... d4
{[%clk 0:01:29.8]} 17. Ba4 {[%clk 0:00:59.3]} 17... Qd5 {[%clk 0:00:47.6]} 18.
Bxc6+ {[%clk 0:00:56.2]} 18... bxc6 {[%clk 0:00:34.4]} 19. cxd4 {[%clk
0:00:55.5]} 19... Bb6 {[%clk 0:00:28.5]} 20. Qe2 {[%clk 0:00:48.5]} 20... h4
{[%clk 0:00:27.6]} 21. Rad1 {[%clk 0:00:45.2]} 21... O-O-O {[%clk 0:00:23.8]}
22. Kg2 {[%clk 0:00:40.3]} 22... Rdg8 {[%clk 0:00:20.4]} 23. Rd3 {[%clk
0:00:39.1]} 23... Bc7 {[%clk 0:00:18.8]} 24. Rg1 {[%clk 0:00:21.4]} 24... Rg4
{[%clk 0:00:17.7]} 25. Kf1 {[%clk 0:00:21]} 25... Qf5 {[%clk 0:00:14.4]} 26.
Nxh4 {[%clk 0:00:17.9]} 26... Qh5 {[%clk 0:00:13.2]} 27. h3 {[%clk 0:00:14.2]}
27... Rxh4 {[%clk 0:00:12.8]} 28. gxh4 {[%clk 0:00:12.2]} 28... Rxg1+ {[%clk
0:00:11.6]} 29. Kxg1 {[%clk 0:00:12.4]} 29... Qxe2 {[%clk 0:00:12.4]} 30. Re3
{[%clk 0:00:11.9]} 30... Qd1+ {[%clk 0:00:12.3]} 31. Kg2 {[%clk 0:00:11.9]}
31... Qxd4 {[%clk 0:00:13.2]} 32. Rf3 {[%clk 0:00:11.3]} 32... Qxh4 {[%clk
0:00:12.7]} 33. Rxf7 {[%clk 0:00:09.6]} 33... Qg5+ {[%clk 0:00:13.2]} 34. Kf1
{[%clk 0:00:07.7]} 34... Qc1+ {[%clk 0:00:12.9]} 35. Kg2 {[%clk 0:00:08]} 35...
Qg5+ {[%clk 0:00:13.2]} 36. Kf1 {[%clk 0:00:07.6]} 36... a5 {[%clk 0:00:12.7]}
37. b3 {[%clk 0:00:05.8]} 37... Qb5+ {[%clk 0:00:11.4]} 38. Kg2 {[%clk
0:00:05.8]} 38... Qd5+ {[%clk 0:00:12.3]} 39. Kf1 {[%clk 0:00:05.5]} 39... e5
{[%clk 0:00:13.2]} 40. Rf8+ {[%clk 0:00:04.6]} 40... Kd7 {[%clk 0:00:13.1]} 41.
h4 {[%clk 0:00:02.1]} 41... Bd6 {[%clk 0:00:12.3]} 0-1

[Event "*** Titled Tuesday Blitz"]
[Site "Chess.com"]
[Date "2020.03.03"]
[Round "1"]
[White "JustDazzled"]
[Black "x-3738459472"]
[Result "0-1"]
[WhiteElo "1963"]
[BlackElo "2548"]
[TimeControl "180+1"]
[EndTime "13:08:40 PST"]
[Termination "x-3738459472 won by resignation"]

1. c4 {[%clk 0:03:00.4]} 1... Nf6 {[%clk 0:02:40]} 2. g3 {[%clk 0:02:58.6]} 2...
e6 {[%clk 0:02:39.7]} 3. Nf3 {[%clk 0:02:58.1]} 3... b6 {[%clk 0:02:39.3]} 4.
Bg2 {[%clk 0:02:57.5]} 4... Bb7 {[%clk 0:02:39.8]} 5. O-O {[%clk 0:02:57.7]}
5... Be7 {[%clk 0:02:38.3]} 6. b3 {[%clk 0:02:56.3]} 6... O-O {[%clk 0:02:37.6]}
7. Bb2 {[%clk 0:02:55.4]} 7... d5 {[%clk 0:02:37.3]} 8. cxd5 {[%clk 0:02:36.6]}
8... exd5 {[%clk 0:02:34.5]} 9. Ne5 {[%clk 0:02:23.8]} 9... Nbd7 {[%clk
0:02:33.1]} 10. Nxd7 {[%clk 0:02:17.5]} 10... Qxd7 {[%clk 0:02:32.7]} 11. Nc3
{[%clk 0:02:18]} 11... Rad8 {[%clk 0:02:30.7]} 12. d4 {[%clk 0:02:13]} 12...
Rfe8 {[%clk 0:02:30.4]} 13. e3 {[%clk 0:02:12.7]} 13... a6 {[%clk 0:02:22.7]}
14. a4 {[%clk 0:02:11.8]} 14... h5 {[%clk 0:02:20]} 15. h3 {[%clk 0:02:06.1]}
15... Bc8 {[%clk 0:02:15.3]} 16. Rc1 {[%clk 0:01:58.8]} 16... Bd6 {[%clk
0:02:11.8]} 17. h4 {[%clk 0:01:39]} 17... Qf5 {[%clk 0:02:07.1]} 18. Qc2 {[%clk
0:01:35.6]} 18... Qg4 {[%clk 0:02:05.7]} 19. Qe2 {[%clk 0:01:33]} 19... Qg6
{[%clk 0:02:04.9]} 20. Nxd5 {[%clk 0:01:23.3]} 20... Nxd5 {[%clk 0:02:04.3]} 21.
Bxd5 {[%clk 0:01:23.3]} 21... Bh3 {[%clk 0:01:53.4]} 22. Bg2 {[%clk 0:01:22.1]}
22... Bg4 {[%clk 0:01:53.2]} 23. Qc2 {[%clk 0:01:17.7]} 23... Bf5 {[%clk
0:01:53.4]} 24. e4 {[%clk 0:01:16.8]} 24... Bxe4 {[%clk 0:01:52.7]} 25. Bxe4
{[%clk 0:01:10.1]} 25... Rxe4 {[%clk 0:01:53]} 26. Rce1 {[%clk 0:01:06.8]} 26...
Rde8 {[%clk 0:01:52.2]} 27. Rxe4 {[%clk 0:01:04.8]} 27... Rxe4 {[%clk
0:01:53.1]} 28. Kg2 {[%clk 0:00:58.6]} 28... a5 {[%clk 0:01:46.6]} 29. Qd3
{[%clk 0:00:53.8]} 29... f5 {[%clk 0:01:45.4]} 30. Qf3 {[%clk 0:00:51]} 30...
Rxh4 {[%clk 0:01:42.1]} 31. Re1 {[%clk 0:00:47.7]} 31... Re4 {[%clk 0:01:41.9]}
32. Rxe4 {[%clk 0:00:44.3]} 32... fxe4 {[%clk 0:01:42.8]} 33. Qe3 {[%clk
0:00:44.8]} 33... h4 {[%clk 0:01:39.5]} 34. d5 {[%clk 0:00:42.2]} 34... hxg3
{[%clk 0:01:39.4]} 35. fxg3 {[%clk 0:00:42.2]} 35... Qf5 {[%clk 0:01:39.7]} 36.
Qc3 {[%clk 0:00:30.9]} 36... Qg4 {[%clk 0:01:34.9]} 37. Qe3 {[%clk 0:00:29.6]}
37... Bc5 {[%clk 0:01:28.3]} 38. Qc3 {[%clk 0:00:20.2]} 38... e3 {[%clk
0:01:19.1]} 39. Qe5 {[%clk 0:00:16.1]} 39... Bd6 {[%clk 0:01:14]} 40. Qe8+
{[%clk 0:00:14.7]} 40... Kh7 {[%clk 0:01:13.6]} 41. Qxe3 {[%clk 0:00:14.9]}
41... Qf5 {[%clk 0:01:11.5]} 42. Qf3 {[%clk 0:00:14.6]} 42... Qc2+ {[%clk
0:01:10.8]} 43. Qf2 {[%clk 0:00:15]} 43... Qg6 {[%clk 0:01:04.3]} 44. Qf3 {[%clk
0:00:13.6]} 44... Bc5 {[%clk 0:01:04.2]} 45. Kh3 {[%clk 0:00:10.9]} 45... Qh6+
{[%clk 0:01:03.5]} 46. Kg4 {[%clk 0:00:11.3]} 46... Bd6 {[%clk 0:00:57.1]} 47.
Bd4 {[%clk 0:00:09.8]} 47... Qg6+ {[%clk 0:00:51.3]} 48. Kh3 {[%clk 0:00:09.3]}
48... Qh6+ {[%clk 0:00:44.2]} 49. Kg4 {[%clk 0:00:09.4]} 49... Kg8 {[%clk
0:00:41]} 50. Qf5 {[%clk 0:00:08.6]} 50... Kh8 {[%clk 0:00:14.4]} 51. Qc8+
{[%clk 0:00:08.5]} 51... Kh7 {[%clk 0:00:14.6]} 52. Qf5+ {[%clk 0:00:09.1]}
52... Qg6+ {[%clk 0:00:14.4]} 53. Qxg6+ {[%clk 0:00:09.3]} 53... Kxg6 {[%clk
0:00:15.3]} 54. Kf3 {[%clk 0:00:09.8]} 54... Bf8 {[%clk 0:00:13.5]} 55. g4
{[%clk 0:00:09.9]} 55... Kf7 {[%clk 0:00:13.4]} 56. Be5 {[%clk 0:00:10.1]} 56...
Bd6 {[%clk 0:00:13.3]} 57. Bxd6 {[%clk 0:00:10.4]} 57... cxd6 {[%clk 0:00:13.2]}
58. Ke4 {[%clk 0:00:09.9]} 58... Kf6 {[%clk 0:00:13.5]} 59. Kf4 {[%clk
0:00:10.5]} 59... Kg6 {[%clk 0:00:12.7]} 60. g5 {[%clk 0:00:08.6]} 60... Kh5
{[%clk 0:00:09.6]} 61. Kf5 {[%clk 0:00:09]} 61... Kh4 {[%clk 0:00:10.1]} 62. Kg6
{[%clk 0:00:09.1]} 62... Kg4 {[%clk 0:00:10.2]} 63. Kxg7 {[%clk 0:00:09.6]}
63... Kxg5 {[%clk 0:00:10.7]} 64. Kf7 {[%clk 0:00:09.8]} 64... Kf5 {[%clk
0:00:11.6]} 65. Ke7 {[%clk 0:00:06.3]} 65... Ke5 {[%clk 0:00:12.5]} 66. Kd7
{[%clk 0:00:06.5]} 66... Kxd5 {[%clk 0:00:13.4]} 67. Kc7 {[%clk 0:00:07.1]}
67... Kc5 {[%clk 0:00:13.7]} 68. b4+ {[%clk 0:00:04.1]} 0-1

[Event "*** Titled Tuesday Blitz"]
[Site "Chess.com"]
[Date "2020.03.03"]
[Round "1"]
[White "MusicCityMaster"]
[Black "Blitzstream"]
[Result "1-0"]
[WhiteElo "2386"]
[BlackElo "2699"]
[TimeControl "180+1"]
[EndTime "13:08:42 PST"]
[Termination "MusicCityMaster won by checkmate"]

1. d4 {[%clk 0:03:00.9]} 1... d5 {[%clk 0:02:55.3]} 2. Bf4 {[%clk 0:02:59.5]}
2... Nf6 {[%clk 0:02:55.1]} 3. Nc3 {[%clk 0:02:58.5]} 3... a6 {[%clk 0:02:53.2]}
4. e3 {[%clk 0:02:57.3]} 4... e6 {[%clk 0:02:52.9]} 5. g4 {[%clk 0:02:56.5]}
5... c5 {[%clk 0:02:52.5]} 6. g5 {[%clk 0:02:55]} 6... Nfd7 {[%clk 0:02:43.5]}
7. Bg2 {[%clk 0:02:49.3]} 7... cxd4 {[%clk 0:02:42.6]} 8. exd4 {[%clk
0:02:48.8]} 8... Nc6 {[%clk 0:02:42.3]} 9. Nge2 {[%clk 0:02:45.4]} 9... Qb6
{[%clk 0:02:40.9]} 10. O-O {[%clk 0:02:35.3]} 10... Qxb2 {[%clk 0:02:38.4]} 11.
Rb1 {[%clk 0:02:30]} 11... Qa3 {[%clk 0:02:38.5]} 12. Qd3 {[%clk 0:02:20.6]}
12... Be7 {[%clk 0:02:08.1]} 13. Rfe1 {[%clk 0:02:17.5]} 13... b5 {[%clk
0:02:02.1]} 14. Rb3 {[%clk 0:02:06.3]} 14... Qa5 {[%clk 0:02:01.6]} 15. Ng3
{[%clk 0:01:51.5]} 15... O-O {[%clk 0:01:52.2]} 16. Nh5 {[%clk 0:01:34.4]} 16...
Bb7 {[%clk 0:01:11.4]} 17. a4 {[%clk 0:01:23.7]} 17... Nb4 {[%clk 0:00:48]} 18.
Qg3 {[%clk 0:01:17.1]} 18... Nxc2 {[%clk 0:00:47.2]} 19. Rd1 {[%clk 0:01:12.1]}
19... bxa4 {[%clk 0:00:46.3]} 20. Rxb7 {[%clk 0:01:10.5]} 20... Qd8 {[%clk
0:00:34.8]} 21. Rxd7 {[%clk 0:00:53.5]} 21... Qxd7 {[%clk 0:00:33.3]} 22. Nf6+
{[%clk 0:00:53.6]} 22... Bxf6 {[%clk 0:00:30.2]} 23. gxf6 {[%clk 0:00:54]} 23...
g6 {[%clk 0:00:30.5]} 24. Qg5 {[%clk 0:00:47.6]} 24... Kh8 {[%clk 0:00:29.5]}
25. Qh6 {[%clk 0:00:47.3]} 25... Rg8 {[%clk 0:00:29.8]} 26. Rd3 {[%clk
0:00:47.3]} 26... e5 {[%clk 0:00:29.5]} 27. Bxe5 {[%clk 0:00:41.5]} 27... g5
{[%clk 0:00:21.5]} 28. Bxd5 {[%clk 0:00:35.4]} 28... Rg6 {[%clk 0:00:18.7]} 29.
Qh5 {[%clk 0:00:23.1]} 29... a3 {[%clk 0:00:18.9]} 30. Bxa8 {[%clk 0:00:22]}
30... Ne1 {[%clk 0:00:12.4]} 31. Re3 {[%clk 0:00:20.6]} 31... Qc8 {[%clk
0:00:12.3]} 32. Qe2 {[%clk 0:00:17.3]} 32... Qxa8 {[%clk 0:00:10.6]} 33. Qxe1
{[%clk 0:00:17.6]} 33... g4 {[%clk 0:00:10.4]} 34. d5 {[%clk 0:00:16.6]} 34...
h5 {[%clk 0:00:10.7]} 35. d6 {[%clk 0:00:16.7]} 35... h4 {[%clk 0:00:11.3]} 36.
d7 {[%clk 0:00:16.5]} 36... h3 {[%clk 0:00:11.7]} 37. Rg3 {[%clk 0:00:15.7]}
37... Qd8 {[%clk 0:00:10.6]} 38. Qd2 {[%clk 0:00:15.6]} 38... Kg8 {[%clk
0:00:10.3]} 39. Nb1 {[%clk 0:00:14.8]} 39... a2 {[%clk 0:00:10]} 40. Qxa2 {[%clk
0:00:13.8]} 40... Qxd7 {[%clk 0:00:10.5]} 41. Qxa6 {[%clk 0:00:13]} 41... Qd1+
{[%clk 0:00:10.2]} 42. Qf1 {[%clk 0:00:13.6]} 42... Qd5 {[%clk 0:00:10.2]} 43.
Qe2 {[%clk 0:00:13.4]} 43... Rg5 {[%clk 0:00:09.2]} 44. Bf4 {[%clk 0:00:12.7]}
44... Rg6 {[%clk 0:00:07.6]} 45. Nd2 {[%clk 0:00:12.1]} 45... Qf5 {[%clk
0:00:07]} 46. Be3 {[%clk 0:00:09.8]} 46... Qxf6 {[%clk 0:00:07.2]} 47. Rxg4
{[%clk 0:00:08.9]} 47... Qa1+ {[%clk 0:00:07.3]} 48. Nf1 {[%clk 0:00:08]} 48...
Qa8 {[%clk 0:00:08.2]} 49. Rxg6+ {[%clk 0:00:06.8]} 49... fxg6 {[%clk
0:00:09.1]} 50. Qg4 {[%clk 0:00:06.9]} 50... Kg7 {[%clk 0:00:09.5]} 51. Qxh3
{[%clk 0:00:07]} 51... Qb7 {[%clk 0:00:10.2]} 52. Qg3 {[%clk 0:00:07.2]} 52...
Kh7 {[%clk 0:00:10.6]} 53. h4 {[%clk 0:00:06.9]} 53... Qd5 {[%clk 0:00:10.5]}
54. Qg5 {[%clk 0:00:07.1]} 54... Qd1 {[%clk 0:00:10.4]} 55. Qh6+ {[%clk
0:00:06.8]} 55... Kg8 {[%clk 0:00:11.1]} 56. Qf4 {[%clk 0:00:06.8]} 56... Kh7
{[%clk 0:00:11.2]} 57. Kg2 {[%clk 0:00:07.3]} 57... Qd5+ {[%clk 0:00:10.9]} 58.
Kg3 {[%clk 0:00:07.2]} 58... Qa2 {[%clk 0:00:09.9]} 59. Bd4 {[%clk 0:00:07.7]}
59... Kg8 {[%clk 0:00:05.6]} 60. Qf6 {[%clk 0:00:06.6]} 60... Qb3+ {[%clk
0:00:05.7]} 61. Ne3 {[%clk 0:00:05.6]} 61... Qb7 {[%clk 0:00:06.1]} 62. Qh8+
{[%clk 0:00:04.3]} 62... Kf7 {[%clk 0:00:06.1]} 63. Qg7+ {[%clk 0:00:04.9]}
63... Ke6 {[%clk 0:00:06.7]} 64. Qxb7 {[%clk 0:00:05.5]} 64... g5 {[%clk
0:00:07.6]} 65. Qg7 {[%clk 0:00:05.5]} 65... gxh4+ {[%clk 0:00:07.6]} 66. Kxh4
{[%clk 0:00:06.1]} 66... Kd6 {[%clk 0:00:08.2]} 67. Qe5+ {[%clk 0:00:06.1]}
67... Kd7 {[%clk 0:00:08.5]} 68. Bc5 {[%clk 0:00:05.9]} 68... Kc6 {[%clk
0:00:09.4]} 69. Nc4 {[%clk 0:00:05.9]} 69... Kb5 {[%clk 0:00:10.3]} 70. Qd6
{[%clk 0:00:05.7]} 70... Kxc4 {[%clk 0:00:10.6]} 71. Qd4+ {[%clk 0:00:05.5]}
71... Kb5 {[%clk 0:00:11.5]} 72. Ba7 {[%clk 0:00:05.7]} 72... Kc6 {[%clk
0:00:12.4]} 73. Qc5+ {[%clk 0:00:05.6]} 73... Kb7 {[%clk 0:00:13.3]} 74. Kg5
{[%clk 0:00:04.9]} 74... Ka8 {[%clk 0:00:14.2]} 75. Kf6 {[%clk 0:00:05.4]} 75...
Kb7 {[%clk 0:00:15.1]} 76. Ke7 {[%clk 0:00:05.7]} 76... Ka8 {[%clk 0:00:16]} 77.
Kd7 {[%clk 0:00:06]} 77... Kb7 {[%clk 0:00:16.9]} 78. Qb6+ {[%clk 0:00:06.3]}
78... Ka8 {[%clk 0:00:16.7]} 79. Qb8# {[%clk 0:00:06.9]} 1-0